bitfinex/quotes_ETHUSD_20220113
["timestamp","ask_amount","ask_price","bid_price","bid_amount"]
[1642094251706,0.00454739,3271.6,3269.4,0.364]
[1642094251707,0.00454739,3271.6,3270.2,0.76426]
[1642094252005,0.00397896,3271.5,3270.8,0.4647691]
[1642094252208,0.49981849,3271.2,3270.8,0.4647691]
[1642094252605,0.00170527,3271.1,3270.8,0.4647691]
[1642094253005,0.00113685,3271.0,3270.8,0.4647691]
[1642094253406,0.80018812,3271.2,3270.3,0.00284212]
[1642094253806,0.80018812,3271.2,3269.9,1.52852]
[1642094253807,0.00170527,3271.1,3270.0,0.00454739]
[1642094254006,0.49981849,3270.9,3270.0,0.00454739]
[1642094254476,4.03752585,3270.8,3270.0,0.00454739]
[1642094254667,4.79902585,3270.8,3270.0,0.00454739]
[1642094254863,4.79902585,3270.8,3267.9,4.63974]
[1642094254864,6.2,3270.6,3268.6,0.02631431]
[1642094255066,3.29181726,3270.5,3269.1,0.00511581]
[1642094255369,1.35897754,3269.7,3269.2,0.45924161]
[1642094255764,0.0353255,3269.8,3269.3,0.00397896]
[1642094255965,0.7645506,3269.9,3269.3,0.00397896]
[1642094256165,0.00227369,3270.4,3269.3,0.00397896]
[1642094256565,0.00170527,3270.3,3269.3,0.00397896]
[1642094256966,0.00113685,3270.2,3269.7,0.46559673]
[1642094257168,0.00113685,3270.2,3269.7,1.22999673]
[1642094257469,0.80315448,3271.0,3269.7,1.22999673]
[1642094257470,2.32614,3270.9,3269.8,0.00113685]
[1642094257667,0.00625266,3271.1,3269.8,0.00113685]
[1642094257869,0.00454739,3270.8,3269.8,0.00113685]
[1642094258066,2.32614,3271.2,3269.8,0.00113685]
[1642094258067,1.50242134,3270.5,3269.8,0.00113685]
[1642094258316,0.00397897,3270.7,3270.3,0.4459509]
[1642094258516,0.00227369,3270.4,3270.3,0.4459509]
[1642094258716,0.00341054,3270.6,3270.3,0.4459509]
[1642094258917,0.00227369,3270.4,3270.3,0.4459509]
[1642094259117,0.00284212,3270.5,3270.3,0.4459509]
[1642094259322,0.00227369,3270.4,3270.3,0.4459509]
[1642094259717,0.00682108,3270.4,3270.3,0.4459509]
[1642094259916,0.00682108,3270.4,3269.9,1.60492]
[1642094260118,0.00682108,3270.4,3270.1,0.76424]
[1642094260421,1.4872347,3270.9,3270.1,0.76424]
[1642094260422,0.00170527,3270.3,3270.1,0.76424]
[1642094260819,0.00113685,3270.2,3270.1,0.76424]
[1642094261019,0.00113685,3270.2,3269.8,0.00113685]
[1642094261620,0.00113685,3270.2,3269.0,0.00568423]
[1642094261821,1.23672664,3269.8,3269.7,0.76442]
[1642094262048,0.00113685,3270.2,3269.7,0.76442]
[1642094262247,0.00113685,3270.2,3269.7,0.76612527]
[1642094262450,0.00113685,3270.2,3269.8,0.00113685]
[1642094263249,1.47557346,3270.1,3269.8,0.00113685]
[1642094263448,0.49981849,3270.0,3269.4,0.00341054]
[1642094263849,0.00113685,3270.2,3269.7,0.4480979]
[1642094264249,0.00113685,3270.2,3269.8,0.00113685]
[1642094264851,0.00113685,3270.2,3270.1,5.0]
[1642094265901,0.00113685,3270.2,3270.1,0.15284]
[1642094266100,0.03744296,3270.1,3269.8,0.00113685]
[1642094266699,0.00113685,3270.2,3269.8,0.00113685]
[1642094266901,0.00113685,3270.2,3269.9,0.01234661]
[1642094267102,0.00113685,3270.2,3270.0,0.61310105]
[1642094267800,0.00113685,3270.2,3269.9,1.605]
[1642094268000,0.00113685,3270.2,3269.9,0.76434]
[1642094268404,0.04286583,3270.1,3269.9,0.76434]
[1642094268599,0.00113685,3270.2,3269.9,0.76434]
[1642094269299,0.00113685,3270.2,3270.1,0.597463]
[1642094270350,0.00113685,3270.2,3270.1,1.91422822]
[1642094270549,0.00113685,3270.2,3270.1,0.597463]
[1642094271350,2.1253796,3271.3,3270.2,0.76433]
[1642094271351,1.71917784,3271.3,3270.2,0.76433]
[1642094271553,0.79428113,3271.0,3270.2,0.76433]
[1642094271752,2.35664574,3271.0,3270.2,0.76433]
[1642094272154,0.01263972,3270.4,3269.8,0.00113685]
[1642094272356,0.04051819,3270.3,3269.8,0.00113685]
[1642094272554,0.04051819,3270.3,3269.4,0.00454739]
[1642094272555,0.7646089,3270.2,3269.4,0.00454739]
[1642094272855,1.46743884,3269.7,3269.2,0.76456]
[1642094273053,1.46743884,3269.7,3269.3,0.00511581]
[1642094273704,1.46743884,3269.7,3267.3,0.364]
[1642094273705,6.2,3269.5,3267.4,3.6009]
[1642094273900,6.2,3269.5,3266.2,0.46263268]
[1642094273901,17.72,3269.3,3268.2,0.01136847]
[1642094274204,0.01256348,3268.7,3268.2,0.01136847]
[1642094274399,6.2,3268.4,3266.6,1.52987]
[1642094274600,0.7650587,3267.6,3266.2,0.01285277]
[1642094274800,1.58760993,3267.6,3266.7,0.00341054]
[1642094275002,17.72113684,3267.5,3266.7,0.00341054]
[1642094275298,17.72113684,3267.5,3265.9,1.53051]
[1642094275299,0.00113684,3267.5,3266.0,0.00738951]
[1642094275502,0.00113684,3267.5,3267.1,1.1926827]
[1642094275800,0.00113684,3267.5,3267.1,1.9576427]
[1642094275998,0.00113684,3267.5,3267.1,0.76496]
[1642094276399,0.00113684,3267.5,3267.2,0.61985967]
[1642094276599,0.00113684,3267.5,3267.2,0.69635967]
[1642094277052,0.04545261,3268.6,3267.3,1.86626763]
[1642094277053,1.61019732,3268.6,3267.3,1.86626763]
[1642094277253,0.04545261,3268.6,3267.8,0.76483]
[1642094277454,0.00568424,3268.5,3267.8,0.76483]
[1642094277853,0.00511582,3268.4,3267.8,0.76483]
[1642094278056,0.00511582,3268.4,3268.1,0.07648]
[1642094278256,6.23669431,3269.3,3268.9,0.57284763]
[1642094278257,3.94199601,3269.3,3268.9,0.57284763]
[1642094278654,3.94199601,3269.3,3268.3,0.01208522]
[1642094278857,3.94199601,3269.3,3268.3,1.54116522]
[1642094279053,3.94199601,3269.3,3268.3,1.52908]
[1642094279255,3.94199601,3269.3,3268.3,0.15292]
[1642094279256,1.47054387,3269.1,3268.3,0.15292]
[1642094279454,0.03760945,3269.2,3268.5,2.29355]
[1642094279654,0.00341054,3269.0,3268.5,2.29355]
[1642094279953,2.40284211,3268.9,3268.5,2.75508082]
[1642094280154,0.00284211,3268.9,3268.5,2.75508082]
[1642094280357,0.00227369,3268.8,3268.6,0.76471]
[1642094280825,0.00170527,3268.7,3268.6,0.76471]
[1642094281016,0.00170527,3268.7,3268.2,0.00113684]
[1642094281215,0.00511581,3268.7,3268.2,0.00113684]
[1642094281427,0.00113684,3268.6,3268.1,0.76484]
[1642094281617,0.80047837,3268.5,3268.1,0.76484]
[1642094281815,0.80047837,3268.5,3268.2,0.00113685]
[1642094283016,0.75047837,3268.5,3268.0,0.0022737]
[1642094283617,0.70047837,3268.5,3268.0,0.0022737]
[1642094283818,2.62956352,3268.4,3268.0,0.0022737]
[1642094284021,2.62956352,3268.4,3268.2,0.76478]
[1642094284454,0.00170527,3268.7,3268.2,0.76478]
[1642094284856,0.00113684,3268.6,3268.5,1.84035508]
[1642094285858,1.33738234,3269.6,3268.7,6.2]
[1642094286056,1.33738234,3269.6,3269.1,0.7643]
[1642094286257,2.00453625,3269.9,3269.3,0.07643]
[1642094286459,2.00453625,3269.9,3269.2,0.15285]
[1642094286659,0.00682108,3269.8,3269.3,0.76428]
[1642094286857,0.00682108,3269.8,3269.3,1.73278]
[1642094287055,2.00453625,3269.9,3269.3,1.73278]
[1642094287056,0.00625266,3269.7,3269.3,1.73278]
[1642094287257,0.00625266,3269.7,3269.6,0.43944591]
[1642094287457,1.5077159,3270.4,3269.6,0.43944591]
[1642094287757,0.0096632,3270.3,3269.7,0.76442]
[1642094288209,0.00909478,3270.2,3269.7,0.76442]
[1642094288608,0.00852635,3270.1,3269.7,0.76442]
[1642094288808,0.00852635,3270.1,3269.5,1.52877]
[1642094289008,0.00795793,3270.0,3269.1,1.5291]
[1642094289408,0.01242176,3269.3,3268.0,0.0022737]
[1642094289609,0.05429947,3269.2,3268.0,0.0022737]
[1642094289807,0.05771001,3269.2,3267.3,0.0073895]
[1642094290009,1.24506092,3268.9,3268.2,0.51622144]
[1642094290208,0.00284212,3269.1,3268.3,1.52947]
[1642094290209,2.40289624,3269.1,3268.3,1.52947]
[1642094290408,0.80011609,3269.2,3268.3,1.53117527]
[1642094290409,0.00113685,3268.8,3268.3,1.53117527]
[1642094290608,0.0022737,3269.0,3268.6,0.7648]
[1642094290807,0.00284212,3269.1,3268.6,0.7648]
[1642094291008,0.00170527,3268.9,3268.6,0.7648]
[1642094291212,0.0022737,3269.0,3268.6,0.7648]
[1642094291510,0.53818276,3269.6,3268.7,0.57640719]
[1642094291708,18.2199329,3269.6,3268.7,0.57640719]
[1642094291960,0.53625749,3269.6,3269.1,0.76467]
[1642094292158,0.53625749,3269.6,3269.2,0.48415302]
[1642094292159,0.4999329,3269.6,3269.2,0.48415302]
[1642094292358,0.03487336,3270.1,3269.2,0.48415302]
[1642094292559,0.17537919,3270.2,3269.2,0.48415302]
[1642094292758,0.00682108,3270.0,3269.4,0.07646]
[1642094292959,0.00682108,3270.0,3269.5,0.76447]
[1642094293158,0.00625266,3269.9,3269.5,0.76447]
[1642094293359,0.00625266,3269.9,3269.6,0.76436]
[1642094293558,2.31574599,3271.0,3269.6,0.76436]
[1642094293559,0.00568423,3269.8,3269.7,6.25990448]
[1642094293759,7.4708,3271.1,3269.4,4.33869]
[1642094293760,2.30282126,3271.1,3269.4,4.33869]
[1642094293958,0.03424204,3271.2,3269.4,4.33869]
[1642094294158,2.30282126,3271.4,3270.8,0.76421]
[1642094294159,0.00625266,3270.9,3270.8,0.76421]
[1642094294564,0.764259,3271.1,3270.8,0.76421]
[1642094294759,0.79990021,3271.1,3270.8,0.76421]
[1642094295060,0.00682109,3271.0,3270.8,0.76421]
[1642094296009,0.00682109,3271.0,3270.8,0.61421]
[1642094298710,0.00682109,3271.0,3270.8,2.01586848]
[1642094298909,0.00682109,3271.0,3270.9,0.07642]
[1642094299761,0.00682109,3271.0,3270.8,2.01586848]
[1642094299962,0.00682109,3271.0,3270.8,0.61421]
[1642094300363,0.00682109,3271.0,3270.7,1.52823]
[1642094300560,0.01293642,3270.9,3269.5,0.00170527]
[1642094300760,2.76030381,3270.9,3269.5,0.00170527]
[1642094300959,17.72568424,3270.8,3269.5,0.76456]
[1642094301160,2.17348826,3269.6,3268.8,1.37612687]
[1642094301360,2.17348826,3269.6,3269.0,0.45703748]
[1642094301564,2.17341279,3269.6,3269.0,0.45703748]
[1642094301761,2.17341279,3269.6,3269.1,0.00397896]
[1642094301762,0.80163105,3269.6,3269.1,0.00397896]
[1642094302363,1.56441514,3269.5,3269.1,0.00397896]
[1642094302760,1.16192588,3269.0,3268.7,1.52935]
[1642094302961,0.7647345,3269.0,3268.7,1.52935]
[1642094303210,1.5294263,3269.5,3268.9,0.59733844]
[1642094303404,1.56013463,3269.5,3268.9,0.59733844]
[1642094303603,1.56013463,3269.5,3269.0,0.00454738]
[1642094303805,0.03070833,3269.5,3269.0,0.00454738]
[1642094304005,0.7645673,3269.6,3269.0,0.00454738]
[1642094304205,0.80259452,3269.6,3269.0,0.00454738]
[1642094304606,0.03802722,3269.6,3269.0,0.00454738]
[1642094304806,0.03382599,3269.8,3269.0,0.00454738]
[1642094305009,0.7645857,3269.4,3269.0,0.08100738]
[1642094305207,0.79753201,3269.4,3269.1,0.76463]
[1642094305608,0.79753201,3269.4,3269.2,0.00341054]
[1642094305809,0.79753201,3269.4,3268.2,1.5296]
[1642094305810,24.73048077,3269.4,3268.2,1.5296]
[1642094306009,24.73048077,3269.4,3268.8,0.00227369]
[1642094306010,2.2946333,3268.9,3268.8,0.00227369]
[1642094306310,2.32608755,3268.9,3268.8,0.00227369]
[1642094306510,0.79633205,3268.9,3268.8,0.00227369]
[1642094306951,0.4999329,3269.3,3268.4,1.52944]
[1642094307157,0.4999329,3269.3,3268.6,0.00341054]
[1642094307158,0.0390769,3268.7,3268.6,0.00341054]
[1642094307351,1.28641515,3269.1,3268.5,0.00397896]
[1642094307555,2.62889099,3268.9,3268.5,0.00397896]
[1642094307851,2.62889099,3268.9,3268.6,0.59861313]
[1642094308257,2.62889099,3268.9,3268.7,0.76757211]
[1642094308655,2.65912147,3269.0,3268.7,0.76757211]
[1642094308856,2.62889099,3269.0,3268.7,0.76757211]
[1642094309255,2.62889099,3269.0,3268.8,0.07647]
[1642094309655,0.03962202,3269.1,3268.9,0.00170527]
[1642094309855,0.4999329,3269.8,3268.9,0.00170527]
[1642094310257,1.16671965,3269.7,3268.9,0.00170527]
[1642094310559,1.16671965,3269.7,3269.1,1.52918]
[1642094310560,0.0022737,3269.6,3269.1,1.52918]
[1642094311020,0.00170527,3269.5,3269.1,1.52918]
[1642094311220,0.76629527,3269.5,3269.1,1.52918]
[1642094311419,0.00113685,3269.4,3269.1,1.52918]
[1642094312120,0.00113685,3269.4,3269.2,0.76459]
[1642094312929,2.62970931,3269.4,3269.2,0.76459]
[1642094314126,2.62970931,3269.4,3268.9,0.00170527]
[1642094314326,0.7647293,3269.2,3268.9,0.00170527]
[1642094314568,0.79955269,3269.2,3268.9,0.00170527]
[1642094314766,0.79955269,3269.2,3268.5,0.00397896]
[1642094314965,0.79955269,3269.2,3268.3,0.76482]
[1642094314966,2.48547056,3269.1,3268.3,0.76482]
[1642094315166,2.48547056,3269.1,3268.4,0.00454738]
[1642094315372,0.7648046,3268.8,3268.4,0.00454738]
[1642094315567,0.7999129,3268.8,3268.4,0.00454738]
[1642094315965,0.7999129,3268.8,3268.5,0.76478]
[1642094316168,0.7499129,3268.8,3268.5,0.76478]
[1642094316366,0.7499129,3268.8,3268.6,0.00341054]
[1642094317371,0.03398791,3268.8,3268.6,0.00341054]
[1642094317570,0.7646257,3269.0,3268.6,0.00341054]
[1642094317770,0.50106975,3269.4,3268.6,0.76800054]
[1642094317971,0.50106975,3269.4,3268.7,0.07646]
[1642094318205,0.00113685,3269.4,3268.9,1.52907]
[1642094318407,0.00113685,3269.4,3269.1,0.52218323]
[1642094319105,0.00113685,3269.4,3269.1,1.36322323]
[1642094319907,2.45996079,3269.6,3269.1,0.76458]
[1642094320207,2.45996079,3269.6,3268.9,1.52907]
[1642094320208,0.7645276,3269.5,3269.2,0.00113684]
[1642094320407,0.80057468,3269.5,3269.2,0.00113684]
[1642094320612,0.80057468,3269.5,3269.0,0.00227369]
[1642094320807,0.80057468,3269.5,3268.8,0.00341054]
[1642094321413,0.7647121,3269.0,3268.8,0.00341054]
[1642094321611,6.38119708,3268.9,3267.5,0.0263143]
[1642094321811,2.95,3268.8,3267.5,0.0263143]
[1642094322055,2.95,3268.8,3268.4,0.00227369]
[1642094322355,1.38685034,3268.5,3268.1,0.00397896]
[1642094322553,0.7648366,3268.4,3268.1,1.53357896]
[1642094322853,0.7648366,3268.4,3268.2,0.00341054]
[1642094322854,0.80067219,3268.4,3268.2,0.00341054]
[1642094323653,1.1728807,3268.3,3268.2,0.00341054]
[1642094324454,0.80067219,3268.4,3268.0,0.00454739]
[1642094325053,0.80067219,3268.4,3268.0,0.08103739]
[1642094325254,0.7647118,3268.6,3268.1,0.76483]
[1642094325455,1.21013686,3268.5,3268.1,0.92175896]
[1642094325714,1.21013686,3268.5,3268.2,1.53294054]
[1642094326113,1.21013686,3268.5,3268.3,0.00284212]
[1642094326313,1.97493086,3268.5,3268.4,0.07648]
[1642094326515,1.97493086,3268.5,3268.3,0.00284212]
[1642094326516,2.00528839,3268.5,3268.3,0.00284212]
[1642094326914,1.23626361,3268.0,3267.6,1.52981]
[1642094327115,1.23626361,3268.0,3267.7,0.00625266]
[1642094327516,0.7647937,3268.3,3267.7,0.84763266]
[1642094327715,0.79544041,3268.3,3267.7,0.77113266]
[1642094327914,0.79544041,3268.3,3267.8,0.00568424]
[1642094328115,2.99545261,3268.8,3268.1,0.50965196]
[1642094328518,1.25955521,3268.5,3268.3,0.76472]
[1642094328716,0.03490457,3268.6,3268.3,0.76472]
[1642094328916,0.04545261,3268.8,3268.3,0.76472]
[1642094329566,0.04545261,3268.8,3268.4,0.60925106]
[1642094329757,0.04545261,3268.8,3268.5,0.76464]
[1642094329957,0.4999329,3269.2,3268.5,0.76634527]
[1642094329958,1.5293532,3269.1,3268.5,0.76634527]
[1642094330158,1.55954484,3269.1,3268.6,0.00113685]
[1642094330358,1.56125011,3269.1,3268.6,1.53038685]
[1642094330756,0.79649841,3269.0,3268.6,1.53038685]
[1642094331758,0.79649841,3269.0,3268.6,1.60685685]
[1642094331967,2.04938315,3269.0,3268.6,1.60685685]
[1642094332159,0.79649841,3269.0,3268.6,1.60685685]
[1642094332559,0.80309819,3269.0,3268.6,1.53038685]
[1642094332759,0.80309819,3269.0,3268.6,0.00113685]
[1642094333618,0.7648311,3268.9,3268.6,0.00113685]
[1642094333820,1.31822239,3268.6,3267.8,1.55554518]
[1642094334015,1.31822239,3268.6,3268.2,0.07649]
[1642094334417,0.03347519,3268.7,3268.3,0.76762212]
[1642094334616,1.56958092,3268.8,3268.3,0.76762212]
[1642094334816,0.7647972,3268.5,3268.3,0.76762212]
[1642094335015,0.79595946,3268.5,3268.3,0.76762212]
[1642094335418,0.74595946,3268.5,3268.3,0.76762212]
[1642094336719,1.88539756,3268.5,3268.3,0.76762212]
[1642094336967,1.88539756,3268.5,3268.3,0.00284212]
[1642094337159,4.2424273,3268.5,3268.3,0.00284212]
[1642094337360,8.59504284,3268.4,3267.5,0.6]
[1642094337560,0.7650692,3268.0,3267.6,0.00397896]
[1642094337761,2.44526179,3267.9,3267.6,0.00397896]
[1642094337960,1.21973769,3267.8,3267.6,0.00397896]
[1642094338160,0.49595394,3267.6,3267.5,0.6]
[1642094338362,2.79595394,3267.6,3266.9,0.07652]
[1642094338560,0.7651485,3267.4,3266.8,1.53021]
[1642094338760,0.79748366,3267.4,3267.0,0.00341054]
[1642094338960,0.03233516,3267.4,3267.0,0.00341054]
[1642094339164,2.3,3267.6,3267.0,0.00341054]
[1642094339165,0.53598056,3267.6,3267.0,0.00341054]
[1642094339362,0.53598056,3267.6,3267.0,0.84506054]
[1642094339562,0.7651485,3267.4,3267.0,0.84506054]
[1642094339762,0.7651485,3267.4,3267.1,0.00284212]
[1642094340164,0.7651485,3267.4,3267.1,0.45900147]
[1642094340367,0.49993337,3268.0,3267.1,0.53551147]
[1642094340564,0.03853916,3268.5,3267.6,0.76485]
[1642094340811,0.00170527,3267.9,3267.4,0.76495]
[1642094341012,0.00454739,3268.4,3267.4,0.76495]
[1642094341210,0.00113684,3267.8,3267.4,0.76495]
[1642094341412,0.03770974,3269.2,3267.7,0.15298]
[1642094341621,1.34330655,3269.5,3268.5,0.76462]
[1642094341815,1.50342118,3269.0,3268.5,0.76462]
[1642094342012,1.50342118,3269.0,3268.3,1.75862]
[1642094342210,0.00341054,3268.9,3268.3,1.75862]
[1642094342414,0.00341054,3268.9,3268.5,0.15292]
[1642094342612,0.00284212,3268.8,3268.5,0.15292]
[1642094342813,0.00284212,3268.8,3268.6,1.60573]
[1642094343012,0.0022737,3268.7,3268.6,1.60573]
[1642094344017,0.0022737,3268.7,3267.9,0.0765]
[1642094344213,0.0022737,3268.7,3267.8,0.00284212]
[1642094344462,0.79642775,3268.3,3268.0,0.00170527]
[1642094344660,0.05953281,3268.2,3267.8,0.00284212]
[1642094344860,1.22925311,3267.8,3267.4,1.53518581]
[1642094345161,1.5300757,3267.8,3267.5,0.00454739]
[1642094345361,1.5634587,3267.8,3267.5,0.76961739]
[1642094345561,0.7650379,3267.7,3267.5,0.76961739]
[1642094345761,20.40326096,3268.8,3267.6,0.00397896]
[1642094345961,0.49993337,3268.3,3267.6,1.53391896]
[1642094346161,1.45660986,3268.0,3267.6,1.53391896]
[1642094346362,1.56120904,3268.1,3267.7,0.76842054]
[1642094346561,0.03128464,3268.1,3267.7,0.76842054]
[1642094346762,0.50107022,3268.5,3267.8,0.00284212]
[1642094346967,0.50107022,3268.5,3267.9,1.52964]
[1642094347263,0.50107022,3268.5,3268.2,0.07648]
[1642094347264,0.00113685,3268.5,3268.2,0.07648]
[1642094347463,0.00113685,3268.5,3268.3,0.76473]
[1642094348708,0.00113685,3268.5,3268.4,0.07648]
[1642094349214,0.00113685,3268.5,3268.3,0.76473]
[1642094351511,0.03441816,3269.3,3268.9,0.7646]
[1642094351808,0.49993337,3269.4,3268.9,0.7646]
[1642094352261,0.764622,3269.2,3268.9,0.7646]
[1642094352459,0.79685171,3269.2,3268.9,0.7646]
[1642094352659,0.00341054,3269.1,3268.9,0.7646]
[1642094352860,1.16915032,3269.1,3268.9,0.7646]
[1642094353060,0.00284212,3269.0,3268.9,0.7646]
[1642094354261,1.1185819,3269.1,3268.9,0.7646]
[1642094354463,0.79685171,3269.2,3268.9,0.7646]
[1642094354864,0.764622,3269.2,3268.9,0.7646]
[1642094355263,0.764622,3269.2,3268.9,0.84107]
[1642094355464,1.89819309,3269.2,3268.9,0.84107]
[1642094356209,1.89819309,3269.2,3268.9,0.7646]
[1642094356607,0.764622,3269.2,3268.9,0.7646]
[1642094357610,1.17870808,3269.1,3268.9,0.7646]
[1642094358412,1.67864145,3269.1,3268.9,0.7646]
[1642094359111,0.49993337,3269.1,3268.9,0.7646]
[1642094359311,0.7646455,3269.4,3268.9,0.7646]
[1642094359562,0.03167391,3269.4,3268.9,0.84107]
[1642094359763,0.49993337,3269.4,3268.9,0.84107]
[1642094360059,1.75513916,3269.4,3268.9,0.7646]
[1642094360261,1.25520579,3269.4,3268.9,0.7646]
[1642094360461,0.0388563,3269.5,3268.9,0.7646]
[1642094360660,0.00284211,3269.5,3268.9,0.7646]
[1642094360860,0.00227369,3269.4,3268.9,0.7646]
[1642094361260,0.00170527,3269.3,3269.0,0.07647]
[1642094361463,0.00170527,3269.3,3266.5,6.2]
[1642094361464,6.16206432,3269.1,3266.5,6.2]
[1642094361663,0.01211474,3267.7,3265.8,0.4651184]
[1642094361962,0.43598144,3267.6,3266.6,0.0119369]
[1642094362161,1.5307342,3266.9,3266.6,0.0119369]
[1642094362366,1.52464138,3266.4,3265.7,0.59285285]
[1642094362561,0.05416818,3266.3,3265.3,0.0193264]
[1642094362772,17.77416818,3266.3,3265.8,0.01648428]
[1642094362962,17.77416818,3266.3,3265.3,0.6193264]
[1642094362963,18.08816818,3266.3,3265.3,0.6193264]
[1642094363220,18.08816818,3266.3,3264.0,5.4122]
[1642094363221,0.7655369,3266.0,3264.0,5.1255994]
[1642094363413,1.49271174,3264.4,3264.1,0.07657]
[1642094363615,2.57151174,3264.4,3264.1,0.00682108]
[1642094363813,0.00768969,3264.3,3264.1,0.00682108]
[1642094364013,0.00768969,3264.3,3263.8,0.00852635]
[1642094364213,0.49993337,3264.3,3263.8,0.00852635]
[1642094364412,0.7658975,3264.1,3263.8,0.00852635]
[1642094364614,5.21204162,3263.9,3263.8,0.00852635]
[1642094364813,1.46204162,3263.9,3263.8,0.00852635]
[1642094365014,1.46204162,3263.9,3263.7,0.989417]
[1642094365015,0.49140702,3263.8,3263.7,0.989417]
[1642094365412,1.46204162,3263.9,3263.7,0.939417]
[1642094365811,0.03736672,3264.0,3263.7,0.939417]
[1642094365812,0.364,3263.8,3263.7,0.939417]
[1642094366413,2.614,3263.8,3263.7,0.939417]
[1642094366713,2.614,3263.8,3263.6,0.007]
[1642094366714,5.2115688,3263.7,3263.6,0.007]
[1642094366965,1.89459921,3263.7,3263.6,0.007]
[1642094367264,19.35303041,3263.7,3263.6,0.00813685]
[1642094367465,1.63303041,3263.7,3263.6,0.00813685]
[1642094367669,1.63303041,3263.7,3263.1,1.60903685]
[1642094367670,0.364,3263.7,3263.1,1.60903685]
[1642094368067,0.364,3264.3,3263.2,0.00227369]
[1642094368465,0.00341054,3264.2,3263.2,0.00227369]
[1642094368665,0.00341054,3264.2,3264.1,1.84791289]
[1642094368868,0.53792239,3264.8,3264.1,1.84791289]
[1642094368869,0.40945261,3264.7,3264.1,1.84791289]
[1642094369065,0.40945261,3264.7,3264.1,0.55545824]
[1642094369265,0.00397896,3264.3,3264.1,0.55545824]
[1642094369565,0.00341054,3264.2,3264.1,0.55545824]
[1642094370065,0.00341054,3264.2,3264.1,1.91535643]
[1642094370710,0.00341054,3264.2,3264.1,1.86535643]
[1642094371310,2.322397,3265.1,3263.6,1.53141]
[1642094371511,0.7657392,3265.0,3263.6,1.53141]
[1642094371812,0.49990471,3264.2,3263.7,0.00284212]
[1642094372415,3.83695068,3264.3,3263.7,0.00284212]
[1642094372614,0.49990471,3264.0,3263.7,0.00284212]
[1642094372811,0.49990471,3264.0,3263.5,0.00397896]
[1642094373017,0.03066006,3264.3,3263.5,0.00397896]
[1642094373211,0.364,3264.4,3263.5,0.00397896]
[1642094373411,0.49990471,3264.3,3263.5,0.00397896]
[1642094373618,3.3,3264.2,3263.6,0.7659]
[1642094374012,0.00341054,3264.1,3263.1,1.60903685]
[1642094374213,0.49990471,3263.6,3263.1,3.14092685]
[1642094374484,0.49990471,3263.6,3263.2,0.00170527]
[1642094374672,17.72,3263.6,3263.2,0.00170527]
[1642094374872,0.03477608,3263.8,3263.2,0.00170527]
[1642094375073,0.49990471,3263.6,3263.2,0.50438563]
[1642094375476,0.49990471,3263.6,3263.3,0.00113685]
[1642094375675,0.00170527,3263.8,3263.3,0.00113685]
[1642094375873,0.00170527,3263.8,3263.7,0.50125164]
[1642094376080,0.00113684,3263.7,3263.6,1.36125466]
[1642094376274,0.00170527,3263.8,3263.6,1.36125466]
[1642094376474,0.00397896,3263.7,3263.6,2.89286466]
[1642094376675,0.00113684,3263.7,3263.6,2.89286466]
[1642094377174,0.00113684,3263.7,3263.6,2.53978254]
[1642094377375,0.00113684,3263.7,3263.6,5.08978254]
[1642094378218,0.00113684,3263.7,3263.6,2.53978254]
[1642094379814,0.00113684,3263.7,3263.6,0.63161]
[1642094380015,0.00113684,3263.7,3263.3,0.00113685]
[1642094380619,0.01264566,3263.4,3262.3,6.2]
[1642094380816,0.01264566,3263.4,3262.7,1.54927697]
[1642094380817,0.364,3263.3,3262.7,1.54927697]
[1642094381014,0.97714566,3263.4,3262.6,0.39584141]
[1642094381015,0.01264566,3263.4,3262.6,0.39584141]
[1642094381215,0.01264566,3263.4,3262.4,0.00511581]
[1642094381216,0.49990471,3263.0,3262.4,0.00511581]
[1642094381416,0.49990471,3263.0,3262.7,0.00341054]
[1642094381619,0.01264566,3263.4,3262.0,0.00738951]
[1642094381982,0.01265089,3262.1,3262.0,1.3893039]
[1642094382174,0.01265089,3262.1,3261.2,0.33055291]
[1642094382175,3.25,3262.0,3261.2,0.33055291]
[1642094382475,0.01200758,3261.3,3261.2,0.02407291]
[1642094382876,0.01200758,3261.3,3261.2,0.02862029]
[1642094383076,0.2668,3261.7,3261.2,0.02862029]
[1642094383077,2.48575876,3261.7,3261.2,0.02862029]
[1642094383275,2.48575876,3261.7,3260.7,0.02242841]
[1642094383276,6.61588882,3261.4,3260.7,0.02242841]
[1642094383480,0.01264827,3260.8,3257.7,0.82489796]
[1642094383677,0.01264827,3260.8,3257.9,0.15976553]
[1642094383678,0.9084,3260.6,3257.9,0.15976553]
[1642094383876,0.9084,3260.4,3257.9,0.15976553]
[1642094384074,2.22720966,3260.5,3257.9,0.15976553]
[1642094384075,0.9084,3260.2,3258.0,0.01818955]
[1642094384274,0.01279143,3259.2,3258.0,0.01818955]
[1642094384477,0.01279143,3259.2,3257.9,1.95]
[1642094384478,0.42043256,3258.5,3257.9,1.95]
[1642094384674,0.0126205,3258.3,3257.8,0.25760655]
[1642094384874,0.00227369,3258.4,3257.8,0.25760655]
[1642094385076,0.00113684,3258.2,3257.8,0.25760655]
[1642094385275,1.17943256,3258.2,3256.4,1.25170739]
[1642094385477,2.38939132,3258.1,3258.0,3.5]
[1642094385722,2.38939132,3258.1,3258.0,1.0324]
[1642094385723,0.54650008,3258.1,3258.0,1.0324]
[1642094385912,0.54650008,3258.1,3256.5,0.00852636]
[1642094385913,0.18250008,3258.1,3256.5,2.22748512]
[1642094386119,0.01218464,3257.2,3256.5,1.25746716]
[1642094386313,0.17043256,3258.1,3256.6,2.22691669]
[1642094386512,0.17043256,3258.1,3257.2,0.01218464]
[1642094386711,0.17043256,3258.1,3256.6,0.08251413]
[1642094386712,0.17043256,3258.1,3257.8,0.37642891]
[1642094387112,0.00227369,3258.4,3257.9,0.0745562]
[1642094387511,0.49990471,3259.3,3257.9,0.4385562]
[1642094387712,0.49990471,3259.3,3258.0,2.24190067]
[1642094387913,0.03596959,3260.6,3258.2,6.15]
[1642094388112,11.33727425,3261.5,3258.2,6.15]
[1642094388113,0.01240909,3261.4,3258.3,2.75123329]
[1642094388413,0.00454738,3260.3,3259.0,1.53341]
[1642094388613,0.00454738,3260.3,3259.1,0.1227]
[1642094388815,0.00397896,3260.2,3259.3,0.7667]
[1642094389015,0.00397896,3260.2,3259.4,0.1227]
[1642094389215,0.00341054,3260.1,3259.4,1.5049]
[1642094389666,0.44990471,3260.4,3259.4,1.5049]
[1642094389667,0.00284211,3260.0,3259.4,1.5049]
[1642094389868,0.00284211,3260.0,3259.7,1.47696928]
[1642094390068,0.00227369,3259.9,3259.8,0.56542005]
[1642094390269,0.0147356,3259.9,3259.8,0.1227]
[1642094390471,0.0147356,3259.9,3258.8,0.1227]